[Event "Vastgota Open 2023"]
[Site "Skara stadshotell, Jarnvagsgatan 5, Skara, Sweden"]
[Date "2023.02.19"]
[Round "7.1"]
[White "Galperin, Platon"]
[Black "Seo, Jung Min"]
[Result "1-0"]
[TimeControl "15 minutes + 5 seconds per move from move one (Round 1 - 2) / 30 minutes + 10 seconds per move from move one (Round 3 - 9)"]
[WhiteTitle "GM"]
[BlackTitle "IM"]
[WhiteFideId "14165414"]
[BlackFideId "1734687"]
[WhiteElo "2429"]
[BlackElo "2448"]

1. Nf3 {[%clk 00:27:47]} {[%emt 00:02:33]} d5 {[%clk 00:30:19]} {[%emt
00:00:01]} 2. g3 {[%clk 00:27:55]} {[%emt 00:00:01]} Nf6 {[%clk 00:30:26]}
{[%emt 00:00:03]} 3. Bg2 {[%clk 00:28:05]} {[%emt 00:00:01]} e6 {[%clk
00:30:36]} 4. O-O {[%clk 00:28:13]} {[%emt 00:00:01]} Be7 {[%clk 00:30:45]} 5.
d3 {[%clk 00:28:22]} c5 {[%clk 00:30:44]} {[%emt 00:00:10]} 6. e4 {[%clk
00:28:30]} {[%emt 00:00:02]} Nc6 {[%clk 00:30:43]} {[%emt 00:00:12]} 7. Bf4
{[%clk 00:27:59]} {[%emt 00:00:41]} O-O {[%clk 00:30:42]} {[%emt 00:00:11]} 8.
Ne5 {[%clk 00:28:05]} {[%emt 00:00:04]} Nxe5 {[%clk 00:23:50]} {[%emt
00:07:01]} 9. Bxe5 {[%clk 00:27:42]} {[%emt 00:00:33]} dxe4 {[%clk 00:18:42]}
{[%emt 00:05:19]} 10. dxe4 {[%clk 00:27:33]} {[%emt 00:00:19]} Bd7 {[%clk
00:18:49]} {[%emt 00:00:03]} 11. a4 {[%clk 00:21:28]} {[%emt 00:06:15]} Bc6
{[%clk 00:18:52]} {[%emt 00:00:07]} 12. Qe2 {[%clk 00:21:04]} {[%emt 00:00:33]}
Qa5 {[%clk 00:16:45]} {[%emt 00:02:18]} 13. Na3 {[%clk 00:18:07]} {[%emt
00:03:07]} Nd7 {[%clk 00:14:42]} {[%emt 00:02:14]} 14. Bc3 {[%clk 00:18:12]}
{[%emt 00:00:04]} Qc7 {[%clk 00:14:47]} {[%emt 00:00:05]} 15. Nb5 {[%clk
00:16:32]} {[%emt 00:01:50]} Qb8 {[%clk 00:13:19]} {[%emt 00:01:37]} 16. e5
{[%clk 00:07:58]} {[%emt 00:08:44]} Bxg2 {[%clk 00:13:21]} {[%emt 00:00:08]} 17.
Kxg2 {[%clk 00:08:06]} {[%emt 00:00:02]} Nb6 {[%clk 00:11:00]} {[%emt
00:02:32]} 18. Ba5 {[%clk 00:07:04]} {[%emt 00:01:11]} Nd5 {[%clk 00:08:01]}
{[%emt 00:03:08]} 19. c4 {[%clk 00:05:50]} {[%emt 00:01:26]} Nb4 {[%clk
00:08:10]} 20. Rad1 {[%clk 00:02:10]} {[%emt 00:03:49]} a6 {[%clk 00:07:11]}
{[%emt 00:01:09]} 21. Nd6 {[%clk 00:02:05]} {[%emt 00:00:16]} Nc6 {[%clk
00:06:53]} {[%emt 00:00:29]} 22. Bb6 {[%clk 00:00:56]} {[%emt 00:01:18]} Nd4
{[%clk 00:07:01]} {[%emt 00:00:01]} 23. Rxd4 {[%clk 00:01:04]} {[%emt
00:00:03]} cxd4 {[%clk 00:07:10]} {[%emt 00:00:01]} 24. c5 {[%clk 00:01:12]}
{[%emt 00:00:01]} Bxd6 {[%clk 00:06:17]} {[%emt 00:01:04]} 25. exd6 {[%clk
00:01:04]} {[%emt 00:00:18]} Qc8 {[%clk 00:06:20]} {[%emt 00:00:07]} 26. Qe4
{[%clk 00:00:18]} {[%emt 00:00:56]} e5 {[%clk 00:05:42]} {[%emt 00:00:48]} 27.
b4 {[%clk 00:00:15]} {[%emt 00:00:13]} Qd7 {[%clk 00:05:23]} {[%emt 00:00:29]}
28. Bc7 {[%clk 00:00:14]} {[%emt 00:00:11]} Ra7 {[%clk 00:03:19]} {[%emt
00:02:14]} 29. Bb6 {[%clk 00:00:23]} {[%emt 00:00:01]} Raa8 {[%clk 00:03:28]}
30. Bc7 {[%clk 00:00:32]} Ra7 {[%clk 00:03:36]} {[%emt 00:00:02]} 31. Qxe5
{[%clk 00:00:23]} {[%emt 00:00:19]} Qxa4 {[%clk 00:03:29]} {[%emt 00:00:18]} 32.
Qd5 {[%clk 00:00:14]} {[%emt 00:00:19]} Qc6 {[%clk 00:02:47]} {[%emt 00:00:52]}
33. Qxc6 {[%clk 00:00:21]} {[%emt 00:00:03]} bxc6 {[%clk 00:02:56]} 34. Rd1
{[%clk 00:00:13]} {[%emt 00:00:17]} f6 {[%clk 00:02:35]} {[%emt 00:00:31]} 35.
Rxd4 {[%clk 00:00:21]} {[%emt 00:00:02]} Rc8 {[%clk 00:02:44]} 36. Bb6 {[%clk
00:00:15]} {[%emt 00:00:16]} Rd7 {[%clk 00:02:54]} {[%emt 00:00:01]} 37. Rd3
{[%clk 00:00:13]} {[%emt 00:00:13]} Kf7 {[%clk 00:02:35]} {[%emt 00:00:28]} 38.
Ra3 {[%clk 00:00:21]} {[%emt 00:00:01]} Ra8 {[%clk 00:02:45]} 39. Kf3 {[%clk
00:00:18]} {[%emt 00:00:13]} Ke6 {[%clk 00:02:54]} {[%emt 00:00:01]} 40. Ke4
{[%clk 00:00:26]} {[%emt 00:00:02]} Rb7 {[%clk 00:01:38]} {[%emt 00:01:26]} 41.
Kd4 {[%clk 00:00:35]} {[%emt 00:00:01]} Kd7 {[%clk 00:01:35]} {[%emt 00:00:13]}
42. Kc4 {[%clk 00:00:23]} {[%emt 00:00:21]} Rbb8 {[%clk 00:01:42]} {[%emt
00:00:05]} 43. Kd4 {[%clk 00:00:17]} {[%emt 00:00:15]} Re8 {[%clk 00:01:44]}
{[%emt 00:00:08]} 44. f4 {[%clk 00:00:16]} {[%emt 00:00:11]} f5 {[%clk
00:01:51]} {[%emt 00:00:03]} 45. Kd3 {[%clk 00:00:16]} {[%emt 00:00:10]} Re4
{[%clk 00:01:54]} {[%emt 00:00:07]} 46. Ra4 {[%clk 00:00:11]} {[%emt 00:00:15]}
h6 {[%clk 00:01:37]} {[%emt 00:00:26]} 47. Kc3 {[%clk 00:00:14]} {[%emt
00:00:08]} Re3+ {[%clk 00:01:43]} {[%emt 00:00:04]} 48. Kd2 {[%clk 00:00:20]}
{[%emt 00:00:04]} Re4 {[%clk 00:01:43]} {[%emt 00:00:10]} 49. Kc3 {[%clk
00:00:30]} {[%emt 00:00:01]} Re2 {[%clk 00:01:41]} {[%emt 00:00:11]} 50. Ra1
{[%clk 00:00:11]} {[%emt 00:00:28]} g6 {[%clk 00:00:57]} {[%emt 00:00:55]} 51.
Kd3 {[%clk 00:00:14]} {[%emt 00:00:07]} Re4 {[%clk 00:00:34]} {[%emt 00:00:33]}
52. Kc3 {[%clk 00:00:11]} {[%emt 00:00:13]} Re3+ {[%clk 00:00:25]} {[%emt
00:00:18]} 53. Kd2 {[%clk 00:00:17]} {[%emt 00:00:04]} Re4 {[%clk 00:00:34]}
{[%emt 00:00:01]} 54. Kc3 {[%clk 00:00:19]} {[%emt 00:01:54]} Re2 {[%clk
00:00:56]} {[%emt 00:02:40]} 55. Kd3 {[%clk 00:00:27]} {[%emt 00:00:02]} Rxh2
{[%clk 00:00:40]} {[%emt 00:00:26]} 56. b5 {[%clk 00:00:36]} cxb5 {[%clk
00:00:46]} {[%emt 00:00:03]} 57. Re1 {[%clk 00:00:45]} Rg2 {[%clk 00:00:17]}
{[%emt 00:00:39]} 58. Re7+ {[%clk 00:00:35]} {[%emt 00:00:20]} Kc6 {[%clk
00:00:27]} 59. Rc7+ {[%clk 00:00:25]} {[%emt 00:00:20]} Kd5 {[%clk 00:00:36]}
{[%emt 00:00:01]} 60. d7 {[%clk 00:00:34]} Rxg3+ {[%clk 00:00:34]} {[%emt
00:00:11]} 61. Ke2 {[%clk 00:00:44]} Ke6 {[%clk 00:00:17]} {[%emt 00:00:27]} 62.
c6 {[%clk 00:00:53]} Rd8 {[%clk 00:00:23]} {[%emt 00:00:04]} 63. Rb7 {[%clk
00:00:56]} {[%emt 00:00:07]} Rg8 {[%clk 00:00:28]} {[%emt 00:00:05]} 64. Rc7
{[%clk 00:00:25]} {[%emt 00:00:41]} Rd8 {[%clk 00:00:35]} {[%emt 00:00:03]} 65.
Ra7 {[%clk 00:00:23]} {[%emt 00:00:12]} Rg8 {[%clk 00:00:40]} {[%emt 00:00:03]}
66. d8=Q Rxd8 {[%clk 00:00:50]} 67. Bxd8 {[%clk 00:00:21]} {[%emt 00:00:02]}
Rc3 {[%clk 00:00:38]} {[%emt 00:00:21]} 68. Rxa6 {[%clk 00:00:29]} {[%emt
00:00:03]} g5 {[%clk 00:00:20]} {[%emt 00:00:27]} 69. fxg5 {[%clk 00:00:33]}
{[%emt 00:00:06]} hxg5 {[%clk 00:00:30]} 70. Ba5 {[%clk 00:00:28]} {[%emt
00:00:16]} Rc5 {[%clk 00:00:16]} {[%emt 00:00:24]} 71. c7+ {[%clk 00:00:34]}
{[%emt 00:00:04]} Kd7 {[%clk 00:00:25]} {[%emt 00:00:01]} 72. Ra8 {[%clk
00:00:42]} 1-0

[Event "Vastgota Open 2023"]
[Site "Skara stadshotell, Jarnvagsgatan 5, Skara, Sweden"]
[Date "2023.02.19"]
[Round "7.2"]
[White "Sivuk, Vitaly"]
[Black "Golubka, Petro"]
[Result "1-0"]
[TimeControl "15 minutes + 5 seconds per move from move one (Round 1 - 2) / 30 minutes + 10 seconds per move from move one (Round 3 - 9)"]
[WhiteTitle "GM"]
[BlackTitle "GM"]
[WhiteFideId "14116502"]
[BlackFideId "14114224"]
[WhiteElo "2502"]
[BlackElo "2407"]

1. c4 {[%clk 00:27:17]} {[%emt 00:00:04]} b6 {[%clk 00:28:11]} {[%emt
00:02:10]} 2. Nc3 {[%clk 00:27:14]} {[%emt 00:00:13]} Bb7 {[%clk 00:28:17]}
{[%emt 00:00:05]} 3. e4 {[%clk 00:27:10]} {[%emt 00:00:13]} e6 {[%clk
00:28:20]} {[%emt 00:00:08]} 4. a3 {[%clk 00:26:24]} {[%emt 00:00:55]} Nf6
{[%clk 00:28:08]} {[%emt 00:00:22]} 5. Qe2 {[%clk 00:24:56]} {[%emt 00:01:38]}
c5 {[%clk 00:27:44]} {[%emt 00:00:35]} 6. Nf3 {[%clk 00:22:39]} {[%emt
00:02:26]} d6 {[%clk 00:27:10]} {[%emt 00:00:45]} 7. d4 {[%clk 00:22:33]}
{[%emt 00:00:15]} Nc6 {[%clk 00:26:23]} {[%emt 00:00:57]} 8. Be3 {[%clk
00:21:41]} {[%emt 00:01:01]} e5 {[%clk 00:25:18]} {[%emt 00:01:16]} 9. d5
{[%emt 00:01:46]} Nd4 {[%clk 00:24:27]} {[%emt 00:00:19]} 10. Qd1 {[%clk
00:20:46]} {[%emt 00:00:11]} Be7 {[%clk 00:24:03]} {[%emt 00:00:35]} 11. Bd3
{[%clk 00:20:52]} {[%emt 00:00:03]} O-O {[%clk 00:24:05]} {[%emt 00:00:09]} 12.
O-O {[%clk 00:20:59]} {[%emt 00:00:02]} h6 {[%clk 00:24:02]} {[%emt 00:00:14]}
13. Nd2 {[%clk 00:19:31]} {[%emt 00:01:37]} Bc8 {[%clk 00:20:07]} {[%emt
00:04:05]} 14. b4 {[%clk 00:19:25]} {[%emt 00:00:16]} Bg4 {[%clk 00:20:06]}
{[%emt 00:00:12]} 15. f3 {[%clk 00:17:44]} {[%emt 00:01:50]} Bd7 {[%clk
00:20:06]} {[%emt 00:00:10]} 16. Rf2 {[%clk 00:17:35]} {[%emt 00:00:19]} Nh5
{[%clk 00:19:38]} {[%emt 00:00:38]} 17. g3 {[%clk 00:17:43]} {[%emt 00:00:02]}
Nf6 {[%clk 00:19:23]} {[%emt 00:00:26]} 18. Rb1 {[%clk 00:17:46]} {[%emt
00:00:06]} Rb8 {[%clk 00:19:22]} {[%emt 00:00:10]} 19. Nf1 {[%clk 00:17:01]}
{[%emt 00:00:56]} a6 {[%clk 00:18:59]} {[%emt 00:00:34]} 20. Rfb2 {[%clk
00:16:58]} {[%emt 00:00:13]} Qc7 {[%clk 00:18:29]} {[%emt 00:00:41]} 21. Nd2
{[%clk 00:17:01]} {[%emt 00:00:05]} Rfc8 {[%clk 00:18:20]} {[%emt 00:00:20]} 22.
Ne2 {[%clk 00:15:14]} {[%emt 00:01:56]} Qd8 {[%clk 00:17:11]} {[%emt 00:01:19]}
23. Kg2 {[%clk 00:15:04]} {[%emt 00:00:19]} Qc7 {[%clk 00:16:52]} {[%emt
00:00:30]} 24. Nxd4 {[%clk 00:12:47]} {[%emt 00:02:27]} cxd4 {[%clk 00:14:58]}
{[%emt 00:02:04]} 25. Bf2 {[%clk 00:12:55]} {[%emt 00:00:02]} b5 {[%clk
00:14:33]} {[%emt 00:00:35]} 26. Rc2 {[%clk 00:12:08]} {[%emt 00:00:56]} Qb7
{[%clk 00:14:16]} {[%emt 00:00:26]} 27. Rbc1 {[%clk 00:11:49]} {[%emt
00:00:31]} bxc4 {[%clk 00:13:49]} {[%emt 00:00:38]} 28. Rxc4 {[%clk 00:11:56]}
{[%emt 00:00:02]} Bb5 {[%clk 00:13:12]} {[%emt 00:00:48]} 29. Rxc8+ {[%clk
00:11:34]} {[%emt 00:00:32]} Rxc8 {[%clk 00:13:20]} {[%emt 00:00:01]} 30. Nc4
{[%clk 00:11:39]} {[%emt 00:00:04]} Qb8 {[%clk 00:12:30]} {[%emt 00:01:01]} 31.
Be1 {[%clk 00:11:31]} {[%emt 00:00:17]} Rc7 {[%clk 00:10:42]} {[%emt 00:01:59]}
32. a4 {[%clk 00:11:37]} {[%emt 00:00:04]} Qc8 {[%clk 00:10:15]} {[%emt
00:00:37]} 33. Qb3 {[%clk 00:10:37]} {[%emt 00:01:10]} Nd7 {[%clk 00:09:48]}
{[%emt 00:00:38]} 34. Rc2 {[%clk 00:10:17]} {[%emt 00:00:29]} Bxc4 {[%clk
00:09:48]} {[%emt 00:00:11]} 35. Rxc4 {[%clk 00:10:25]} {[%emt 00:00:02]} a5
{[%clk 00:09:36]} {[%emt 00:00:22]} 36. Rxc7 {[%clk 00:10:00]} {[%emt
00:00:35]} Qxc7 {[%clk 00:09:45]} 37. bxa5 {[%clk 00:09:24]} {[%emt 00:00:45]}
Nc5 {[%clk 00:09:08]} {[%emt 00:00:47]} 38. Qc2 {[%clk 00:06:07]} {[%emt
00:03:27]} Qb7 {[%clk 00:08:11]} {[%emt 00:01:07]} 39. Bb5 {[%clk 00:06:10]}
{[%emt 00:00:07]} Bg5 {[%clk 00:07:36]} {[%emt 00:00:46]} 40. h4 {[%clk
00:05:26]} {[%emt 00:00:53]} Be3 {[%clk 00:07:32]} {[%emt 00:00:14]} 41. Qe2
{[%clk 00:05:34]} {[%emt 00:00:02]} h5 {[%clk 00:07:12]} {[%emt 00:00:30]} 42.
a6 {[%clk 00:05:37]} {[%emt 00:00:07]} Qb6 {[%clk 00:06:49]} {[%emt 00:00:34]}
43. a5 {[%clk 00:04:07]} {[%emt 00:01:39]} Qa7 {[%clk 00:06:10]} {[%emt
00:00:50]} 44. Bb4 {[%clk 00:03:00]} {[%emt 00:01:16]} g6 {[%clk 00:05:51]}
{[%emt 00:00:28]} 45. Qc2 {[%clk 00:02:22]} {[%emt 00:00:49]} d3 {[%clk
00:04:04]} {[%emt 00:01:57]} 46. Bxd3 {[%clk 00:02:12]} {[%emt 00:00:20]} Bd4
{[%clk 00:04:11]} {[%emt 00:00:04]} 47. Be2 {[%clk 00:02:07]} {[%emt 00:00:14]}
Kg7 {[%clk 00:03:57]} {[%emt 00:00:24]} 48. Qc4 {[%clk 00:02:12]} {[%emt
00:00:05]} Qe7 {[%clk 00:03:56]} {[%emt 00:00:12]} 49. Bc3 {[%clk 00:01:55]}
{[%emt 00:00:25]} Be3 {[%clk 00:03:59]} {[%emt 00:00:09]} 50. Qb5 {[%clk
00:01:26]} {[%emt 00:00:39]} g5 {[%clk 00:04:02]} {[%emt 00:00:08]} 51. hxg5
{[%clk 00:00:54]} {[%emt 00:00:41]} Qxg5 {[%clk 00:03:44]} {[%emt 00:00:28]} 52.
a7 {[%clk 00:00:26]} {[%emt 00:00:37]} Bf4 {[%clk 00:01:40]} {[%emt 00:02:14]}
53. Be1 {[%clk 00:00:35]} {[%emt 00:00:01]} Bxg3 {[%clk 00:01:18]} {[%emt
00:00:32]} 54. Bxg3 {[%clk 00:00:42]} {[%emt 00:00:04]} h4 {[%clk 00:01:22]}
{[%emt 00:00:05]} 55. a8=Q {[%clk 00:00:44]} {[%emt 00:00:08]} Qxg3+ {[%clk
00:01:27]} {[%emt 00:00:04]} 56. Kf1 {[%clk 00:00:54]} h3 {[%clk 00:00:59]}
{[%emt 00:00:40]} 57. Qbe8 {[%clk 00:00:42]} {[%emt 00:00:22]} Qg2+ {[%clk
00:01:02]} {[%emt 00:00:07]} 58. Ke1 {[%clk 00:00:51]} {[%emt 00:00:01]} Qg1+
{[%clk 00:01:04]} {[%emt 00:00:08]} 59. Kd2 {[%clk 00:00:59]} {[%emt 00:00:01]}
Qd4+ {[%clk 00:00:53]} {[%emt 00:00:21]} 60. Kc2 {[%clk 00:01:00]} {[%emt
00:00:09]} 1-0

[Event "Vastgota Open 2023"]
[Site "Skara stadshotell, Jarnvagsgatan 5, Skara, Sweden"]
[Date "2023.02.19"]
[Round "7.3"]
[White "Palchuk, Andrii"]
[Black "Lindgren, Philip"]
[Result "1-0"]
[TimeControl "15 minutes + 5 seconds per move from move one (Round 1 - 2) / 30 minutes + 10 seconds per move from move one (Round 3 - 9)"]
[WhiteTitle "FM"]
[BlackTitle "IM"]
[WhiteFideId "14176688"]
[BlackFideId "1713230"]
[WhiteElo "2238"]
[BlackElo "2282"]

1. d4 {[%clk 00:27:22]} {[%emt 00:02:57]} Nf6 {[%clk 00:30:11]} {[%emt
00:00:09]} 2. c4 {[%clk 00:27:31]} {[%emt 00:00:01]} e6 {[%clk 00:30:19]}
{[%emt 00:00:02]} 3. Nf3 {[%clk 00:27:39]} {[%emt 00:00:02]} d5 {[%clk
00:30:27]} {[%emt 00:00:02]} 4. g3 {[%clk 00:27:47]} {[%emt 00:00:02]} Be7
{[%clk 00:26:37]} {[%emt 00:03:59]} 5. Bg2 {[%clk 00:27:55]} {[%emt 00:00:02]}
c6 {[%clk 00:26:05]} {[%emt 00:00:43]} 6. Nbd2 {[%clk 00:27:08]} {[%emt
00:00:57]} b6 {[%clk 00:26:06]} {[%emt 00:00:09]} 7. O-O {[%clk 00:27:13]}
{[%emt 00:00:05]} Bb7 {[%clk 00:26:04]} {[%emt 00:00:12]} 8. b3 {[%clk
00:23:32]} {[%emt 00:03:52]} O-O {[%clk 00:25:11]} {[%emt 00:01:02]} 9. Bb2
{[%clk 00:23:32]} {[%emt 00:00:10]} Nbd7 {[%clk 00:23:21]} {[%emt 00:02:00]} 10.
e3 {[%clk 00:23:22]} {[%emt 00:00:20]} Rc8 {[%clk 00:22:03]} {[%emt 00:01:29]}
11. Qe2 {[%clk 00:23:06]} {[%emt 00:00:25]} c5 {[%clk 00:21:38]} {[%emt
00:00:36]} 12. Rfd1 {[%clk 00:22:56]} {[%emt 00:00:19]} dxc4 {[%clk 00:19:16]}
{[%emt 00:02:32]} 13. Nxc4 {[%clk 00:22:35]} {[%emt 00:00:31]} Qc7 {[%clk
00:15:51]} {[%emt 00:03:35]} 14. dxc5 {[%clk 00:17:25]} {[%emt 00:05:20]} Bxc5
{[%clk 00:15:11]} {[%emt 00:00:50]} 15. Nfe5 {[%clk 00:12:30]} {[%emt
00:05:06]} Bxg2 {[%clk 00:09:40]} {[%emt 00:05:41]} 16. Nxd7 {[%clk 00:12:34]}
{[%emt 00:00:05]} Nxd7 {[%clk 00:09:48]} {[%emt 00:00:02]} 17. Qg4 {[%clk
00:12:27]} {[%emt 00:00:17]} g6 {[%clk 00:09:56]} {[%emt 00:00:02]} 18. Kxg2
{[%clk 00:12:21]} {[%emt 00:00:16]} b5 {[%clk 00:09:07]} {[%emt 00:00:59]} 19.
Nd2 {[%clk 00:11:20]} {[%emt 00:01:11]} Ne5 {[%clk 00:08:02]} {[%emt 00:01:15]}
20. Qe2 {[%clk 00:10:02]} {[%emt 00:01:28]} Qb7+ {[%clk 00:05:21]} {[%emt
00:02:51]} 21. Kg1 {[%clk 00:07:32]} {[%emt 00:02:40]} Bd6 {[%clk 00:05:27]}
{[%emt 00:00:04]} 22. Rac1 {[%clk 00:05:36]} {[%emt 00:02:06]} Rfd8 {[%clk
00:03:53]} {[%emt 00:01:44]} 23. Rxc8 {[%clk 00:03:17]} {[%emt 00:02:29]} Rxc8
{[%clk 00:03:46]} {[%emt 00:00:17]} 24. f4 {[%clk 00:03:21]} {[%emt 00:00:06]}
Nd7 {[%clk 00:03:30]} {[%emt 00:00:25]} 25. Qd3 {[%clk 00:03:20]} {[%emt
00:00:12]} Be7 {[%clk 00:00:25]} {[%emt 00:03:15]} 26. Ne4 {[%clk 00:03:21]}
{[%emt 00:00:10]} Rd8 {[%clk 00:00:00]} 1-0

[Event "Vastgota Open 2023"]
[Site "Skara stadshotell, Jarnvagsgatan 5, Skara, Sweden"]
[Date "2023.02.19"]
[Round "7.4"]
[White "Chatalbashev, Boris"]
[Black "Ronneland, Daniel"]
[Result "1-0"]
[TimeControl "15 minutes + 5 seconds per move from move one (Round 1 - 2) / 30 minutes + 10 seconds per move from move one (Round 3 - 9)"]
[WhiteTitle "GM"]
[WhiteFideId "2900440"]
[BlackFideId "1702130"]
[WhiteElo "2522"]
[BlackElo "2188"]

1. d4 {[%clk 00:30:18]} Nf6 {[%clk 00:30:02]} {[%emt 00:00:19]} 2. c4 {[%clk
00:30:24]} {[%emt 00:00:04]} c5 {[%clk 00:29:56]} {[%emt 00:00:16]} 3. d5
{[%clk 00:30:32]} {[%emt 00:00:03]} b5 {[%clk 00:29:58]} {[%emt 00:00:07]} 4.
cxb5 {[%clk 00:30:40]} {[%emt 00:00:02]} a6 {[%clk 00:30:02]} {[%emt 00:00:06]}
5. bxa6 {[%clk 00:30:47]} {[%emt 00:00:02]} Bxa6 {[%clk 00:30:07]} {[%emt
00:00:06]} 6. Nc3 {[%clk 00:30:54]} {[%emt 00:00:03]} d6 {[%clk 00:30:01]}
{[%emt 00:00:16]} 7. Nf3 {[%clk 00:30:49]} {[%emt 00:00:15]} g6 {[%clk
00:30:02]} {[%emt 00:00:09]} 8. e4 {[%clk 00:30:10]} {[%emt 00:00:48]} Bxf1
{[%clk 00:30:04]} {[%emt 00:00:08]} 9. Kxf1 {[%clk 00:30:18]} {[%emt 00:00:03]}
Bg7 {[%clk 00:30:07]} {[%emt 00:00:06]} 10. g3 {[%clk 00:30:25]} {[%emt
00:00:03]} O-O {[%clk 00:30:11]} {[%emt 00:00:06]} 11. Kg2 {[%clk 00:30:32]}
{[%emt 00:00:02]} Nbd7 {[%clk 00:30:16]} {[%emt 00:00:07]} 12. a4 {[%clk
00:30:39]} {[%emt 00:00:03]} Qb6 {[%clk 00:29:04]} {[%emt 00:01:20]} 13. Qe2
{[%clk 00:29:59]} {[%emt 00:00:52]} Rfb8 {[%clk 00:29:04]} {[%emt 00:00:10]} 14.
Nb5 {[%clk 00:28:18]} {[%emt 00:01:51]} Ne8 {[%clk 00:26:05]} {[%emt 00:03:08]}
15. Nd2 {[%clk 00:27:20]} {[%emt 00:01:08]} Nc7 {[%clk 00:25:44]} {[%emt
00:00:31]} 16. Nc4 {[%clk 00:27:26]} {[%emt 00:00:04]} Qb7 {[%clk 00:25:41]}
{[%emt 00:00:12]} 17. Nxc7 {[%clk 00:27:21]} {[%emt 00:00:16]} Qxc7 {[%clk
00:25:34]} {[%emt 00:00:17]} 18. a5 {[%emt 00:02:52]} Ra7 {[%clk 00:22:03]}
{[%emt 00:03:38]} 19. Bf4 {[%clk 00:20:26]} {[%emt 00:04:26]} Be5 {[%clk
00:17:12]} {[%emt 00:05:01]} 20. Be3 {[%clk 00:17:07]} {[%emt 00:03:29]} Rb4
{[%clk 00:13:50]} {[%emt 00:03:30]} 21. Rhc1 {[%clk 00:16:35]} {[%emt
00:00:45]} Qb8 {[%clk 00:12:57]} {[%emt 00:01:02]} 22. Ra2 {[%clk 00:11:43]}
{[%emt 00:05:04]} Qb5 {[%clk 00:11:18]} {[%emt 00:01:47]} 23. Bd2 {[%clk
00:10:41]} {[%emt 00:01:13]} Rxb2 {[%clk 00:05:12]} {[%emt 00:06:15]} 24. Rxb2
{[%clk 00:08:35]} {[%emt 00:02:17]} Bxb2 {[%clk 00:05:18]} {[%emt 00:00:04]} 25.
Rb1 {[%clk 00:08:31]} {[%emt 00:00:14]} Ne5 {[%clk 00:05:25]} {[%emt 00:00:03]}
26. Rxb2 {[%clk 00:08:31]} {[%emt 00:00:09]} Qxc4 {[%clk 00:05:30]} {[%emt
00:00:06]} 27. Rb8+ {[%clk 00:07:39]} {[%emt 00:01:02]} Kg7 {[%clk 00:05:28]}
{[%emt 00:00:12]} 28. Qe3 {[%clk 00:07:27]} {[%emt 00:00:21]} Ng4 {[%clk
00:02:58]} {[%emt 00:02:40]} 29. Qf4 {[%clk 00:07:33]} {[%emt 00:00:05]} f5
{[%clk 00:01:17]} {[%emt 00:01:50]} 30. h3 {[%clk 00:07:02]} {[%emt 00:00:41]}
Qxe4+ {[%clk 00:00:47]} {[%emt 00:00:40]} 31. Qxe4 {[%clk 00:07:03]} {[%emt
00:00:10]} fxe4 {[%clk 00:00:56]} {[%emt 00:00:02]} 32. hxg4 {[%clk 00:07:10]}
{[%emt 00:00:02]} Kf6 {[%clk 00:01:00]} {[%emt 00:00:06]} 33. Bc3+ {[%clk
00:06:54]} {[%emt 00:00:26]} Kg5 {[%clk 00:00:41]} {[%emt 00:00:28]} 34. Kh3
{[%clk 00:06:47]} 1-0